{"text_format":"1","workbook":"xlsx","n_sheets":4,"sheets":["Matriz","Apresentação","Configuracao","DadosBasicos"],"not_rendered":{"charts":0,"images":2,"macros":1,"external_links":0,"defined_names":0,"comments":2,"pivot_tables":0},"unopened":[],"bounds":{"document_bytes":16777216,"sheet_cells":100000,"rows_first":2000,"rows_last":500,"rows_between":2000,"halvings":0,"cell_chars":16384,"cell_head_chars":4096},"cells_cut":0,"cells_raw":0,"read":"whole","date_system":"1900"}

{"sheet":"Matriz","index":0,"n_rows":58,"n_cols":8,"rows_kept":58,"cut":false,"hidden":false,"merged":[[57,1,58,5],[0,2,0,5],[42,3,42,4],[41,3,41,4],[5,2,5,5],[7,4,7,5],[8,4,8,5]]}
[]
[]
[]
[null,null,null,null,"Ano:",2014]
[null,null,null,null,"Conferência:",{"$f":"IF(Configuracao!B5=\"\",\"\",Configuracao!B5)","v":""}]
[null,null,"REDE APL DE TI DO PARANÁ\nPROJETO INDICADORES DE TI"]
[]
[null,null,"Empresa:",82619446000163,"Priori Informática Ltda.",null,{"$f":"IF(AND(LEN(H8)=14,SUM(IF(ISNUMBER(VALUE(MID(H8,{1;2;3;4;5;6;7;8;9;10;11;12;13;14},1))),0,1))=0),AND(IF(MOD(SUM(INT(MID(H8,{1;2;3;4;5;6;7;8;9;10;11;12},1))*(INT(MID(\"543298765432\",{1;2;3;4;5;6;7;8;9;10;11;12},1))))*10,11)=10,0,MOD(SUM(INT(MID(H8,{1;2;3;4;5;6;7;8;9;10;11;12},1))*(INT(MID(\"543298765432\",{1;2;3;4;5;6;7;8;9;10;11;12},1))))*10,11))=INT(MID(H8,13,1)),IF(MOD(SUM(INT(MID(H8,{1;2;3;4;5;6;7;8;9;10;11;12;13},1))*(INT(MID(\"6543298765432\",{1;2;3;4;5;6;7;8;9;10;11;12;13},1))))*10,11)=10,0,MOD(SUM(INT(MID(H8,{1;2;3;4;5;6;7;8;9;10;11;12;13},1))*(INT(MID(\"6543298765432\",{1;2;3;4;5;6;7;8;9;10;11;12;13},1))))*10,11))=INT(MID(H8,14,1))),FALSE)","v":true},{"$f":"IF(D8=\"\",\"\",RIGHT(CONCATENATE(REPT(\"0\",14),D8),14))","v":"82619446000163"}]
[null,null,"Responsável para contato",61581810997,"Gerson Jair Froehner",null,{"$f":"IF(AND(LEN(H9)=11,SUM(IF(H9=REPT({\"0\";\"1\";\"2\";\"3\";\"4\";\"5\";\"6\";\"7\";\"8\";\"9\"},11),1,0))=0,SUM(IF(ISNUMBER(VALUE(MID(H9,{1;2;3;4;5;6;7;8;9;10;11},1))),0,1))=0),AND(IF(OR(11-(MOD(SUM(INT(MID(H9,{1;2;3;4;5;6;7;8;9},1))*({10;9;8;7;6;5;4;3;2})),11))=10,11-(MOD(SUM(INT(MID(H9,{1;2;3;4;5;6;7;8;9},1))*({10;9;8;7;6;5;4;3;2})),11))=11),0,11-(MOD(SUM(INT(MID(H9,{1;2;3;4;5;6;7;8;9},1))*({10;9;8;7;6;5;4;3;2})),11)))=INT(MID(H9,10,1)),IF(OR(11-(MOD(SUM(INT(MID(H9,{1;2;3;4;5;6;7;8;9;10},1))*({11;10;9;8;7;6;5;4;3;2})),11))=10,11-(MOD(SUM(INT(MID(H9,{1;2;3;4;5;6;7;8;9;10},1))*({11;10;9;8;7;6;5;4;3;2})),11))=11),0,11-(MOD(SUM(INT(MID(H9,{1;2;3;4;5;6;7;8;9;10},1))*({11;10;9;8;7;6;5;4;3;2})),11)))=INT(MID(H9,11,1))),FALSE)","v":true},{"$f":"IF(D9=\"\",\"\",RIGHT(CONCATENATE(REPT(\"0\",11),D9),11))","v":"61581810997"}]
[]
[null,null,"Item","Período","Unidade de medida","Valor"]
[null,1,{"$f":"CONCATENATE(\"Faturamento Bruto em \",$F$4-1)","v":"Faturamento Bruto em 2013"},{"$f":"CONCATENATE(\"01.01 a 31.12.\",$F$4-1)","v":"01.01 a 31.12.2013"},"R$",575000,2818,"V"]
[null,2,{"$f":"CONCATENATE(\"Faturamento Previsto para exercício futuro - Ano \",$F$4)","v":"Faturamento Previsto para exercício futuro - Ano 2014"},{"$f":"CONCATENATE(\"01.01 a 31.12.\",$F$4)","v":"01.01 a 31.12.2014"},"R$",650000,2819,"V"]
[null,3,{"$f":"CONCATENATE(\"Faturamento Bruto em \",$F$4-2)","v":"Faturamento Bruto em 2012"},{"$f":"CONCATENATE(\"01.01 a 31.12.\",$F$4-2)","v":"01.01 a 31.12.2012"},"R$",516000,2820,"V"]
[null,4,{"$f":"CONCATENATE(\"Número médio de colaboradores em \",$F$4-1)","v":"Número médio de colaboradores em 2013"},{"$f":"CONCATENATE(\"01.01 a 31.12.\",$F$4-1)","v":"01.01 a 31.12.2013"},"unidade",8,2821,"Q"]
[null,5,{"$f":"CONCATENATE(\"Número médio de colaboradores em \",$F$4-2)","v":"Número médio de colaboradores em 2012"},{"$f":"CONCATENATE(\"01.01 a 31.12.\",$F$4-2)","v":"01.01 a 31.12.2012"},"unidade",8,2822,"Q"]
[null,6,{"$f":"CONCATENATE(\"Número médio de terceirizados em \",$F$4-1)","v":"Número médio de terceirizados em 2013"},{"$f":"CONCATENATE(\"01.01 a 31.12.\",$F$4-1)","v":"01.01 a 31.12.2013"},"unidade",0,2823,"Q"]
[null,7,{"$f":"CONCATENATE(\"Número médio de terceirizados em \",$F$4-2)","v":"Número médio de terceirizados em 2012"},{"$f":"CONCATENATE(\"01.01 a 31.12.\",$F$4-2)","v":"01.01 a 31.12.2012"},"unidade",0,2824,"Q"]
[null,8,{"$f":"CONCATENATE(\"Número de sócios que atuaram operacionalmente em \",$F$4-1)","v":"Número de sócios que atuaram operacionalmente em 2013"},{"$f":"CONCATENATE(\"01.01 a 31.12.\",$F$4-1)","v":"01.01 a 31.12.2013"},"unidade",4,2825,"Q"]
[null,9,{"$f":"CONCATENATE(\"Número de sócios que atuaram operacionalmente em \",$F$4-2)","v":"Número de sócios que atuaram operacionalmente em 2012"},{"$f":"CONCATENATE(\"01.01 a 31.12.\",$F$4-2)","v":"01.01 a 31.12.2012"},"unidade",4,2826,"Q"]
[null,10,"Valor das contas a receber em atraso, nos últimos 6 meses",null,"R$",12568.06,2827,"V"]
[null,11,"Valor das contas a receber , nos últimos 6 meses",null,"R$",330552.84000000003,2828,"V"]
[null,12,"Valor total dos investimentos  *1",{"$f":"CONCATENATE(\"01.01 a 31.12.\",$F$4-1)","v":"01.01 a 31.12.2013"},"R$",22267,2829,"V"]
[null,13,{"$f":"CONCATENATE(\"Número de clientes geradores de faturamento \",$F$4-1,\" (t1)  *2\")","v":"Número de clientes geradores de faturamento 2013 (t1)  *2"},{"$f":"CONCATENATE(\"01.01 a 31.12.\",$F$4-1)","v":"01.01 a 31.12.2013"},"unidade",87,2830,"Q"]
[null,14,{"$f":"CONCATENATE(\"Número de clientes geradores de faturamento \",$F$4-2,\" (t0)\")","v":"Número de clientes geradores de faturamento 2012 (t0)"},{"$f":"CONCATENATE(\"01.01 a 31.12.\",$F$4-2)","v":"01.01 a 31.12.2012"},"unidade",83,2831,"Q"]
[null,15,"Valor da hora técnica praticada atualmente (cobrada do cliente):"]
[null,null,"Hora de desenvolvimento",null,"R$",35,2832,"V"]
[null,null,"Hora de consultoria",null,"R$",80,2833,"V"]
[null,null,"Hora de implantação (exceto suporte técnico)",null,"R$",35,2834,"V"]
[null,16,"Valor gasto com capacitações  *3",{"$f":"CONCATENATE(\"01.01 a 31.12.\",$F$4-1)","v":"01.01 a 31.12.2013"},"R$",null,2835,"V"]
[null,17,"Total de horas gastas com capacitações internas e externas",{"$f":"CONCATENATE(\"01.01 a 31.12.\",$F$4-1)","v":"01.01 a 31.12.2013"},"horas",null,2836,"Q"]
[null,18,"Total das despesas com recursos humanos  *4",{"$f":"CONCATENATE(\"01.01 a 31.12.\",$F$4-1)","v":"01.01 a 31.12.2013"},"R$",249865,2837,"V"]
[null,19,"Número Total de admissões no ano",{"$f":"CONCATENATE(\"01.01 a 31.12.\",$F$4-1)","v":"01.01 a 31.12.2013"},"unidade",2,2838,"Q"]
[null,20,"Número Total de demissões no ano",{"$f":"CONCATENATE(\"01.01 a 31.12.\",$F$4-1)","v":"01.01 a 31.12.2013"},"unidade",0,2839,"Q"]
[null,21,{"$f":"CONCATENATE(\"Número total de colaboradores - 31.12.\",$F$4-1)","v":"Número total de colaboradores - 31.12.2013"},{"$f":"CONCATENATE(\"31 de Dezembro \",$F$4-1)","v":"31 de Dezembro 2013"},"unidade",6,2840,"Q"]
[null,22,{"$f":"CONCATENATE(\"Número total de colaboradores - 31.12.\",$F$4-2)","v":"Número total de colaboradores - 31.12.2012"},{"$f":"CONCATENATE(\"31 de Dezembro \",$F$4-2)","v":"31 de Dezembro 2012"},"unidade",4,2841,"Q"]
[null,23,"Volume de recursos (R$) aplicado em ações sociais pela empresa  *6",{"$f":"CONCATENATE(\"01.01 a 31.12.\",$F$4-1)","v":"01.01 a 31.12.2013"},"R$",0,2842,"V"]
[null,24,{"$f":"CONCATENATE(\"Número de campanhas sociais que a empresa participou em \",$F$4-1)","v":"Número de campanhas sociais que a empresa participou em 2013"},{"$f":"CONCATENATE(\"01.01 a 31.12.\",$F$4-1)","v":"01.01 a 31.12.2013"},"unidade",null,2843,"Q"]
[null,25,"Número de beneficiários das campanhas que a empresa participou",{"$f":"CONCATENATE(\"01.01 a 31.12.\",$F$4-1)","v":"01.01 a 31.12.2013"},"unidade",null,2844,"Q"]
[null,26,"Número de programas da empresa para inclusão digital que possui ou apoia",{"$f":"CONCATENATE(\"01.01 a 31.12.\",$F$4-1)","v":"01.01 a 31.12.2013"},"unidade",null,2845,"Q"]
[null,27,"Número de beneficiários dos programas de inclusão digital",{"$f":"CONCATENATE(\"01.01 a 31.12.\",$F$4-1)","v":"01.01 a 31.12.2013"},"unidade",null,2846,"Q"]
[null,28,"Possui certificação de qualidade?",null,null,"Sim",2847,"S"]
[null,29,"Quais são as certificações conquistadas?",null,null,"MPS.Br",2848,"S"]
[null,30,"Horas gastas da equipe de desenvolvimento com retrabalho *7",{"$f":"CONCATENATE(\"01.01 a 31.12.\",$F$4-1)","v":"01.01 a 31.12.2013"},"horas",null,2849,"Q"]
[null,31,"Horas gastas da equipe de desenvolvimento  com novas funcionalidades *8","01.01 a 31.12.2013","horas",null,2850,"Q"]
[null,32,"Horas gastas da equipe de desenvolvimento com outras atividades*9","01.01 a 31.12.2013","horas",null,2851,"Q"]
[null,33,"Total de chamados de clientes atendidos no prazo - suporte*10","01.01 a 31.12.2013","unidade",2970,2852,"Q"]
[null,34,"Total de chamados de clientes - suporte *10","01.01 a 31.12.2013","unidade",3251,2853,"Q"]
[null,35,"Total de clientes atendidos pelo suporte","01.01 a 31.12.2013","unidade",87,2854,"Q"]
[null,36,"Total de horas faturadas de  implantação","01.01 a 31.12.2013","horas",null,2855,"Q"]
[null,37,"Total de horas disponíveis da equipe de implantação","01.01 a 31.12.2013","horas",null,2856,"Q"]
[null,38,"Data da fundação da empresa",null,"dd/mm/aaaa","1991-07-01",2857,"D"]
[null,39,"Valor do Investimento em produtos inovadores no ano",{"$f":"CONCATENATE(\"01.01 a 31.12.\",$F$4-1)","v":"01.01 a 31.12.2013"},"R$",null,2859,"V"]
[null,40,"Valor do faturamento resultante por produtos inovadores",{"$f":"CONCATENATE(\"01.01 a 31.12.\",$F$4-1)","v":"01.01 a 31.12.2013"},"R$",null,2860,"V"]
[null,41,"Número de produtos inovadores desenvolvidos no ano",{"$f":"CONCATENATE(\"01.01 a 31.12.\",$F$4-1)","v":"01.01 a 31.12.2013"},"unidade",null,2861,"Q"]
[null,42,"Total de horas disponíveis da equipe de desenvolvimento",{"$f":"CONCATENATE(\"01.01 a 31.12.\",$F$4-1)","v":"01.01 a 31.12.2013"},"unidade",null,2899,"Q"]
[]
[null,"Atenção: O documento deve ser salvo com a opção \"habilitado para macro do excel\" (xlsm). Caso seja salvo em outro padrão não será possível exportar o diagnóstico para o SEBRAE/PR."]

{"sheet":"Apresentação","index":1,"n_rows":60,"n_cols":7,"rows_kept":60,"cut":false,"hidden":false,"merged":[[49,1,49,2],[1,5,1,6]]}
[]
[null,null,"Item","Utilizado no(s) indicador(es)",null,"Tabela de Indicadores "]
[null,1,{"$f":"Matriz!C12","v":"Faturamento Bruto em 2013"},"1, 2, 4, 5, 8, 10, 12",null,1,"Faturamento médio por colaborador"]
[null,2,{"$f":"Matriz!C13","v":"Faturamento Previsto para exercício futuro - Ano 2014"},2,null,2,"Taxa de crescimento anual do faturamento"]
[null,3,{"$f":"Matriz!C14","v":"Faturamento Bruto em 2012"},"1, 2, 5",null,3,"Taxa de inadimplência"]
[null,4,{"$f":"Matriz!C15","v":"Número médio de colaboradores em 2013"},"1, 9",null,4,"Taxa anual de investimento"]
[null,5,{"$f":"Matriz!C16","v":"Número médio de colaboradores em 2012"},1,null,5,"Faturamento médio por cliente"]
[null,6,{"$f":"Matriz!C17","v":"Número médio de terceirizados em 2013"},1,null,6,"Taxa de crescimento da carteira de clientes"]
[null,7,{"$f":"Matriz!C18","v":"Número médio de terceirizados em 2012"},1,null,7,"Valor da hora técnica"]
[null,8,{"$f":"Matriz!C19","v":"Número de sócios que atuaram operacionalmente em 2013"},1,null,8,"Índice de investimento em capacitação em R$ "]
[null,9,{"$f":"Matriz!C20","v":"Número de sócios que atuaram operacionalmente em 2012"},1,null,9,"Índice de investimento em capacitação em hrs (per capita)"]
[null,10,{"$f":"Matriz!C21","v":"Valor das contas a receber em atraso, nos últimos 6 meses"},3,null,10,"índice de Despesas com Rec. Humanos"]
[null,11,{"$f":"Matriz!C22","v":"Valor das contas a receber , nos últimos 6 meses"},3,null,11,"Índice de Rotatividade de Pessoas"]
[null,12,{"$f":"Matriz!C23","v":"Valor total dos investimentos  *1"},4,null,12,"Investimento em ações sociais"]
[null,13,{"$f":"Matriz!C24","v":"Número de clientes geradores de faturamento 2013 (t1)  *2"},"5, 6",null,13,"Participação em campanhas sociais"]
[null,14,{"$f":"Matriz!C25","v":"Número de clientes geradores de faturamento 2012 (t0)"},"5, 6",null,14,"Inclusão Digital"]
[null,15,{"$f":"Matriz!C26","v":"Valor da hora técnica praticada atualmente (cobrada do cliente):"},7,null,15,"Índice de Horas Faturadas"]
[null,null,{"$f":"Matriz!C27","v":"Hora de desenvolvimento"},7,null,16,"Índice de Conformidade com Prazo de Entrega"]
[null,null,{"$f":"Matriz!C28","v":"Hora de consultoria"},7,null,17,"Retrabalho"]
[null,null,{"$f":"Matriz!C29","v":"Hora de implantação (exceto suporte técnico)"},7,null,18,"Índice de Novas Funcionalidades"]
[null,16,{"$f":"Matriz!C30","v":"Valor gasto com capacitações  *3"},8,null,19,"Índice médio chamados suporte por cliente"]
[null,17,{"$f":"Matriz!C31","v":"Total de horas gastas com capacitações internas e externas"},9,null,20,"Investimento em inovação"]
[null,18,{"$f":"Matriz!C32","v":"Total das despesas com recursos humanos  *4"},10,null,21,"Produtos inovadores"]
[null,19,{"$f":"Matriz!C33","v":"Número Total de admissões no ano"},11,null,22,"Resultado dos Produtos Inovadores"]
[null,20,{"$f":"Matriz!C34","v":"Número Total de demissões no ano"},11]
[null,21,{"$f":"Matriz!C35","v":"Número total de colaboradores - 31.12.2013"},11]
[null,22,{"$f":"Matriz!C36","v":"Número total de colaboradores - 31.12.2012"},11]
[null,23,{"$f":"Matriz!C37","v":"Volume de recursos (R$) aplicado em ações sociais pela empresa  *6"},12]
[null,24,{"$f":"Matriz!C38","v":"Número de campanhas sociais que a empresa participou em 2013"},13]
[null,25,{"$f":"Matriz!C39","v":"Número de beneficiários das campanhas que a empresa participou"},13]
[null,26,{"$f":"Matriz!C40","v":"Número de programas da empresa para inclusão digital que possui ou apoia"},14]
[null,27,{"$f":"Matriz!C41","v":"Número de beneficiários dos programas de inclusão digital"},14]
[null,28,{"$f":"Matriz!C42","v":"Possui certificação de qualidade?"}]
[null,29,{"$f":"Matriz!C43","v":"Quais são as certificações conquistadas?"}]
[null,30,{"$f":"Matriz!C44","v":"Horas gastas da equipe de desenvolvimento com retrabalho *7"},17]
[null,31,{"$f":"Matriz!C45","v":"Horas gastas da equipe de desenvolvimento  com novas funcionalidades *8"},18]
[null,32,{"$f":"Matriz!C46","v":"Horas gastas da equipe de desenvolvimento com outras atividades*9"},17]
[null,33,{"$f":"Matriz!C47","v":"Total de chamados de clientes atendidos no prazo - suporte*10"},16]
[null,34,{"$f":"Matriz!C48","v":"Total de chamados de clientes - suporte *10"},16]
[null,35,{"$f":"Matriz!C49","v":"Total de clientes atendidos pelo suporte"},19]
[null,36,{"$f":"Matriz!C50","v":"Total de horas faturadas de  implantação"},15]
[null,37,{"$f":"Matriz!C51","v":"Total de horas disponíveis da equipe de implantação"},15]
[null,38,{"$f":"Matriz!C52","v":"Data da fundação da empresa"}]
[null,39,{"$f":"Matriz!C53","v":"Valor do Investimento em produtos inovadores no ano"},20]
[null,40,{"$f":"Matriz!C54","v":"Valor do faturamento resultante por produtos inovadores"},22]
[null,41,{"$f":"Matriz!C55","v":"Número de produtos inovadores desenvolvidos no ano"},21]
[null,42,{"$f":"Matriz!C56","v":"Total de horas disponíveis da equipe de desenvolvimento"}]
[]
[]
[null,"Observações do Diagnóstico:"]
[null,"*1","São considerados Investimentos  os recursos destinados para a abertura de novos mercados, aumento de receita ou redução de custos de forma significativa, tais como: Aquisição de veículos, máquinas, equipamentos, mobiliário;Softwares adquiridos; Aquisição/reforma/ampliação de instalações prediais; capacitações da força de trabalho; Certificações, desenvolvimento de produtos"]
[null,"*2","Cliente gerador de faturamento:  CNPJ  Raiz que gera faturamento (ex. matriz e filiais é considerado um único cliente). Porém, se houver um CNPJ raiz com “clientes /proprietários” diferentes  vinculados ao CNPJ, com  projetos e demandas diferenciadas, considerar como vários clientes"]
[null,"*3","Valor gasto com capacitações: incluir, também,  as capacitações realizadas também internamente pela própria empresa. Neste caso, apurar o valor em R$ correspondente às capacitações internas."]
[null,"*4","Despesas com recursos humanos: salários mais encargos, bonificações concedidas, férias, 13º salário, auxílio alimentação, comissões, planos de saúde, previdência privada,  benefícios concedidos, participação em resultados, custos com terceirizações (PJ), estagiários. Incluir, também, a remuneração efetivamente paga a  sócios pela gestão da empresa (pró-labore)."]
[null,"*5","Impostos, taxas, encargos, tributos gerados na atividade: incluir as de nível federal, estadual e municipal."]
[null,"*6","Volume de recursos aplicados em ações sociais: incluem-se arrecadações e doações em espécie ou físicas (ex. equipamentos, alimentos, ...). Em caso de doação física, estimar o valor monetário."]
[null,"*7","Retrabalho: Tempo gasto na correção  de Bugs ou não conformidades, após a entrega do produto.\nBug: é a correção de uma não conformidade num produto que já foi entregue pela equipe de desenvolvimento internamente (ex. a P.O) ou identificado pelo cliente final).\n"]
[null,"*8","Nova Funcionalidade: Toda alteração, complementação ou desenvolvimento que vise a melhoria do produto ou o atendimento de um novo requisito do cliente.\nSão horas dedicadas na programação de novas funcionalidades do produto.\nIncluem-se nas horas despendidas com a nova funcionalidade:\n Projeto e desenvolvimento;\n Arquitetura, projeto da funcionalidade;\n Testes e ensaios do produto antes da entrega para revisão ou release ao cliente.\n"]
[null,"*9","Horas gastas com outras atividades: Todas as demais horas da equipe de desenvolvimento que não foram destinadas ao desenvolvimento de novas funcionalidades ou na correção de bugs (retrabalho) Exemplos: Horas com planejamento, treinamentos, reuniões, cerimônias do processo, análise e estimativas."]
[null,"*10","Chamados de Suporte: Observação: Considerar como chamada ao suporte inclusive os contatos de clientes para dirimir dúvidas sobre a utilização do sistema e, também, aqueles que eventualmente gerarem demanda para o setor de desenvolvimento."]

{"sheet":"Configuracao","index":2,"n_rows":6,"n_cols":2,"rows_kept":6,"cut":false,"hidden":true,"merged":[]}
["Configuração"]
["Questionário",208]
["Link","http://app.pr.sebrae.com.br/pls/appsepr/master.pc_apl_ti_excel."]
["Último Grupo"]
["Controle"]
["Versão","V1.00"]

{"sheet":"DadosBasicos","index":3,"n_rows":2,"n_cols":2,"rows_kept":2,"cut":false,"hidden":true,"merged":[]}
[1,2]
["Tipo","Código"]